bitfinex/quotes_BTCUSD_20250826
["timestamp","ask_amount","ask_price","bid_price","bid_amount"]
[1756226689352,6.1774262,110060.0,110050.0,0.00523]
[1756226689524,6.0214262,110060.0,110050.0,0.00523]
[1756226689744,6.1774262,110060.0,110050.0,0.00523]
[1756226690110,6.1774262,110060.0,110050.0,0.00309]
[1756226690714,6.1774262,110060.0,110050.0,4e-05]
[1756226692142,6.26887149,110060.0,110050.0,4e-05]
[1756226692382,6.26887407,110060.0,110050.0,4e-05]
[1756226692581,6.17742878,110060.0,110050.0,4e-05]
[1756226693570,6.17742878,110060.0,110050.0,0.00309]
[1756226693775,6.17742878,110060.0,110050.0,4e-05]
[1756226693976,6.20832612,110060.0,110050.0,4e-05]
[1756226694174,6.29977141,110060.0,110050.0,4e-05]
[1756226694590,6.20832612,110060.0,110050.0,4e-05]
[1756226696863,5.65219854,110060.0,110050.0,4e-05]
[1756226697067,6.20832612,110060.0,110050.0,4e-05]
[1756226697536,6.24103414,110060.0,110050.0,0.00309]
[1756226697896,6.20832612,110060.0,110050.0,0.00309]
[1756226698100,6.05232612,110060.0,110050.0,0.00309]
[1756226698301,6.20828612,110060.0,110050.0,0.00523]
[1756226698509,6.05232612,110060.0,110050.0,0.00523]
[1756226698752,6.20828612,110060.0,110050.0,0.00523]
[1756226698944,6.05232612,110060.0,110050.0,0.00523]
[1756226699223,6.20830516,110060.0,110050.0,0.00523]
[1756226700423,6.05234516,110060.0,110050.0,0.00523]
[1756226700567,5.47170746,110060.0,110050.0,0.00523]
[1756226700770,6.01038602,110060.0,110050.0,0.00523]
[1756226700984,0.25915907,110060.0,110050.0,0.00523]
[1756226701345,0.73614196,110060.0,110050.0,0.0777496]
[1756226701545,0.71653386,110060.0,110050.0,0.0777496]
[1756226702109,0.71553386,110060.0,110050.0,0.0777496]
[1756226702316,1.27066144,110060.0,110050.0,0.0777496]
[1756226702550,0.18175209,110040.0,110030.0,0.07146046]
[1756226702750,0.89383967,110040.0,110030.0,0.07368717]
[1756226704005,0.89383967,110040.0,110030.0,0.00222671]
[1756226704205,0.34623571,110040.0,110030.0,0.00222671]
[1756226704441,0.92969429,110040.0,110030.0,0.00222671]
[1756226704695,1.27176429,110040.0,110030.0,0.00422671]
[1756226705393,1.2914056,110040.0,110030.0,0.00422671]
[1756226705855,1.2914056,110040.0,110030.0,0.00522671]
[1756226706775,1.29140701,110040.0,110030.0,0.00522671]
[1756226707479,1.2696557,110040.0,110030.0,0.00844671]
[1756226707693,0.71352812,110040.0,110030.0,0.00844671]
[1756226707942,1.26965543,110040.0,110030.0,0.00844671]
[1756226709935,0.55760785,110040.0,110030.0,0.00844671]
[1756226710573,1.11373543,110040.0,110030.0,0.00822177]
[1756226710776,1.27097543,110040.0,110030.0,0.00822177]
[1756226711590,1.27307543,110040.0,110030.0,0.00822177]
[1756226711802,1.94341774,110040.0,110030.0,0.00308671]
[1756226712001,1.38729016,110040.0,110030.0,0.00308671]
[1756226712422,2.05231205,110040.0,110030.0,0.00308671]
[1756226712783,2.07575738,110040.0,110030.0,0.00308671]
[1756226713224,2.07575738,110040.0,110030.0,0.00208671]
[1756226713425,2.1002675,110040.0,110030.0,0.00208671]
[1756226713630,2.1012675,110040.0,110030.0,0.00208671]
[1756226714066,2.1012675,110040.0,110030.0,8.671e-05]
[1756226714258,6.8595105,110040.0,110030.0,8.671e-05]
[1756226714693,6.8595105,110040.0,110030.0,1e-08]
[1756226714899,6.8677084,110040.0,110030.0,1e-08]
[1756226715135,5.59821324,110040.0,110030.0,1e-08]
[1756226715283,6.89236536,110040.0,110030.0,1e-08]
[1756226715495,6.8923529,110040.0,110030.0,1e-08]
[1756226715899,6.7349929,110040.0,110030.0,1e-08]
[1756226716101,6.85972488,110040.0,110030.0,1e-08]
[1756226716473,6.70228488,110040.0,110030.0,1e-08]
[1756226716672,6.85968488,110040.0,110030.0,1e-08]
[1756226716912,6.7729952,110040.0,110030.0,1e-08]
[1756226717297,6.05635762,110040.0,110030.0,1e-08]
[1756226717502,6.22798234,110040.0,110030.0,0.00205001]
[1756226717909,6.07055451,110040.0,110030.0,0.00527001]
[1756226718206,6.20337755,110040.0,110030.0,0.00205001]
[1756226718766,6.20337579,110040.0,110030.0,0.00205001]
[1756226718913,6.17786131,110040.0,110030.0,0.00527001]
[1756226719120,5.62383373,110040.0,110030.0,0.00527001]
[1756226719328,6.17996131,110040.0,110030.0,0.00527001]
[1756226719527,6.17996131,110040.0,110030.0,0.00205001]
[1756226720145,6.2714066,110040.0,110030.0,1e-08]
[1756226720337,6.2714061,110040.0,110030.0,1e-08]
[1756226721962,5.71527852,110040.0,110030.0,0.00205001]
[1756226722164,1.5119031,110040.0,110030.0,0.00527001]
[1756226722416,1.42045781,110040.0,110030.0,0.00527001]
[1756226723782,1.42037781,110040.0,110030.0,0.00527001]
[1756226724371,1.42247781,110040.0,110030.0,0.00527001]
[1756226724610,1.42037781,110040.0,110030.0,0.00527001]
[1756226725842,1.26325781,110040.0,110030.0,0.00527001]
[1756226726038,1.40280879,110040.0,110030.0,0.00527001]
[1756226726607,1.24580879,110040.0,110030.0,0.00527001]
[1756226726840,0.39553648,110040.0,110030.0,0.00527001]
[1756226726987,0.19702076,110040.0,110030.0,0.07778961]
[1756226727183,0.34071209,110040.0,110030.0,0.07778961]
[1756226727659,0.33871209,110040.0,110030.0,0.07778961]
[1756226729710,0.18175209,110040.0,110030.0,0.25955821]
[1756226729968,0.18175209,110040.0,110030.0,0.81568579]
[1756226730647,0.18175209,110040.0,110030.0,0.63391719]
[1756226730836,0.18175209,110040.0,110030.0,0.81568579]
[1756226731071,0.33875209,110040.0,110030.0,0.25955821]
[1756226731294,0.33875209,110040.0,110030.0,0.81568579]
[1756226732032,0.18175209,110040.0,110030.0,0.81568579]
[1756226732441,0.18175209,110040.0,110030.0,0.25955821]
[1756226732637,0.18175209,110040.0,110030.0,0.07778961]
[1756226732852,0.18175209,110040.0,110030.0,0.00754211]
[1756226733530,0.33859209,110040.0,110030.0,0.00754211]
[1756226733753,0.89681967,110040.0,110030.0,1e-08]
[1756226733974,0.89681967,110040.0,110030.0,0.00205001]
[1756226734128,0.18175209,110040.0,110030.0,0.00527001]
[1756226734328,0.33859209,110040.0,110030.0,0.00527001]
[1756226734536,0.33859209,110040.0,110030.0,0.00727001]
[1756226735044,0.33859209,110040.0,110030.0,0.00827001]
[1756226735630,0.34069209,110040.0,110030.0,0.00827001]
[1756226736268,0.33859209,110040.0,110030.0,0.00827001]
[1756226737584,0.33843209,110040.0,110030.0,0.00827001]
[1756226738243,0.18175209,110040.0,110030.0,0.00827001]
[1756226738467,0.33843209,110040.0,110030.0,0.00827001]
[1756226739164,0.33839209,110040.0,110030.0,0.19003861]
[1756226739961,0.33839209,110040.0,110030.0,0.00827001]
[1756226740183,0.33839209,110040.0,110030.0,0.01054211]
[1756226740383,0.18175209,110040.0,110030.0,0.28377273]
[1756226740592,0.18175209,110040.0,110030.0,0.83762821]
[1756226741226,0.33835043,110050.0,110030.0,0.99422821]
[1756226741437,0.67835043,110050.0,110040.0,0.00298]
[1756226741672,0.67835043,110050.0,110040.0,0.00497]
[1756226741798,0.20502656,110060.0,110040.0,0.83658359]
[1756226741987,0.34736501,110060.0,110050.0,0.00298]
[1756226742189,0.68736501,110060.0,110050.0,0.00497]
[1756226743679,0.34736501,110060.0,110050.0,0.18670557]
[1756226743900,0.34736501,110060.0,110050.0,0.00497]
[1756226744081,0.33827906,110060.0,110050.0,0.00397]
[1756226744447,0.33827906,110060.0,110050.0,0.83656686]
[1756226744646,0.33850314,110070.0,110050.0,0.83529517]
[1756226744856,0.18190314,110070.0,110050.0,0.98991517]
[1756226745955,0.18190314,110070.0,110050.0,0.43378759]
[1756226746208,0.52190314,110070.0,110060.0,0.00298]
[1756226746439,0.52190314,110070.0,110060.0,0.00497]
[1756226746755,0.52389314,110070.0,110060.0,0.00497]
[1756226746957,0.52190314,110070.0,110060.0,0.00497]
[1756226747597,0.52389314,110070.0,110060.0,0.00199]
[1756226747759,0.52389314,110070.0,110060.0,0.00497]
[1756226751041,0.33842314,110070.0,110060.0,0.74508812]
[1756226751259,0.33842314,110070.0,110060.0,0.00497]
[1756226751260,0.18190314,110070.0,110060.0,0.00497]
[1756226753193,0.18389314,110070.0,110060.0,0.00497]
[1756226754333,0.19239116,110070.0,110060.0,0.00497]
[1756226756172,0.18171906,110060.0,110050.0,0.09444202]
[1756226756358,0.18171906,110060.0,110050.0,0.25271202]
[1756226756851,0.18171906,110060.0,110050.0,0.43444759]
[1756226757053,0.18370906,110060.0,110050.0,0.09643202]
[1756226757254,0.18370906,110060.0,110050.0,0.24774202]
[1756226757656,0.18370906,110060.0,110050.0,0.25073202]
[1756226757831,0.18370906,110060.0,110050.0,0.29325713]
[1756226758038,0.18370906,110060.0,110050.0,0.13697713]
[1756226758411,0.19221396,110060.0,110050.0,0.13697713]
[1756226759477,0.19221396,110060.0,110050.0,0.13995713]
[1756226759623,0.19221396,110060.0,110050.0,0.29309713]
[1756226759828,0.19221396,110060.0,110050.0,0.4748327]
[1756226760246,0.19221396,110060.0,110050.0,0.3187127]
[1756226760466,0.75132154,110060.0,110050.0,0.002]
[1756226760671,0.90740154,110060.0,110050.0,0.002]
[1756226764510,0.35127396,110060.0,110050.0,0.002]
[1756226764711,0.35127396,110060.0,110050.0,0.18373557]
[1756226765129,0.34829396,110060.0,110050.0,0.18373557]
[1756226765322,0.35127396,110060.0,110050.0,0.18373557]
[1756226765520,0.35127396,110060.0,110050.0,0.002]
[1756226766168,0.35127396,110060.0,110050.0,0.18373557]
[1756226766169,0.19221396,110060.0,110050.0,0.18373557]
[1756226766383,0.0104949,110060.0,110050.0,0.18572557]
[1756226766585,0.0085049,110060.0,110050.0,0.18870557]
[1756226767427,0.4548633,110070.0,110060.0,0.18171906]
[1756226767627,0.63903209,110070.0,110060.0,0.18700906]
[1756226767844,0.64099209,110070.0,110060.0,0.18700906]
[1756226768813,0.64099407,110070.0,110060.0,0.18700906]
[1756226769232,0.64099407,110070.0,110060.0,0.00216]
[1756226769573,0.18171906,110060.0,110050.0,0.74199315]
[1756226769782,0.19219514,110060.0,110050.0,0.43552759]
[1756226769984,0.19023514,110060.0,110050.0,0.43552759]
[1756226770810,0.00851608,110060.0,110050.0,0.43552759]
[1756226770994,0.19023514,110060.0,110050.0,0.43552759]
[1756226771959,0.19023514,110060.0,110050.0,0.43652759]
[1756226772159,0.21183698,110060.0,110050.0,0.25475202]
[1756226772363,0.76796456,110060.0,110050.0,0.158]
[1756226772774,0.76796456,110060.0,110050.0,0.34189557]
[1756226775837,0.21183698,110060.0,110050.0,0.34189557]
[1756226776036,0.76796456,110060.0,110050.0,0.34189557]
[1756226776242,0.74832272,110060.0,110050.0,0.34189557]
[1756226777340,0.73980664,110060.0,110050.0,0.34189557]
[1756226777680,0.74833337,110060.0,110050.0,0.34189557]
[1756226778058,0.19220579,110060.0,110050.0,0.34189557]
[1756226778252,0.19220579,110060.0,110050.0,0.34502557]
[1756226778458,0.74833337,110060.0,110050.0,0.33973557]
[1756226779078,0.74833337,110060.0,110050.0,0.34189557]
[1756226779454,0.74833337,110060.0,110050.0,0.34502557]
[1756226780314,0.74833337,110060.0,110050.0,0.34189557]
[1756226780484,0.19220579,110060.0,110050.0,0.16016]
[1756226780687,0.75137337,110060.0,110050.0,0.002]
[1756226780938,0.19524579,110060.0,110050.0,0.002]
[1756226781154,0.75137337,110060.0,110050.0,0.002]
[1756226781290,0.19220579,110060.0,110050.0,0.002]
[1756226781649,0.74833337,110060.0,110050.0,0.18373557]
[1756226781862,0.74833337,110060.0,110050.0,0.002]
[1756226782060,0.90737337,110060.0,110050.0,0.002]
[1756226782697,0.90433337,110060.0,110050.0,0.00729]
[1756226783343,0.90433337,110060.0,110050.0,0.00416]
[1756226783549,0.90433337,110060.0,110050.0,0.002]
[1756226783860,0.90737337,110060.0,110050.0,0.002]
[1756226784086,0.34820579,110060.0,110050.0,0.002]
[1756226784225,0.90433337,110060.0,110050.0,0.002]
[1756226784425,0.90433337,110060.0,110050.0,0.00416]
[1756226784845,0.90737337,110060.0,110050.0,0.002]
[1756226785045,1.24737337,110060.0,110050.0,0.002]
[1756226785507,1.29434661,110060.0,110050.0,0.002]
[1756226786099,0.73821903,110060.0,110050.0,0.002]
[1756226786341,1.27469837,110060.0,110050.0,0.002]
[1756226786558,1.38580723,110060.0,110050.0,0.002]
[1756226786783,1.50403877,110060.0,110050.0,0.002]
[1756226786957,6.81740935,110060.0,110050.0,1e-08]
[1756226787133,6.82216397,110060.0,110050.0,1e-08]
[1756226787529,6.85485982,110060.0,110050.0,1e-08]
[1756226787740,6.85485982,110060.0,110030.0,1e-08]
[1756226787741,0.18175209,110040.0,110030.0,1e-08]
[1756226787942,1.4781744,110040.0,110030.0,1e-08]
[1756226788150,1.48013446,110040.0,110030.0,1e-08]
[1756226788354,1.46352762,110040.0,110030.0,1e-08]
[1756226788555,1.65220064,110040.0,110030.0,1e-08]
[1756226789128,1.66642415,110040.0,110030.0,0.00100001]
[1756226790384,2.13492342,110040.0,110030.0,0.00100001]
[1756226790611,1.97892342,110040.0,110030.0,0.00100001]
[1756226790834,2.11530592,110040.0,110030.0,0.00100001]
[1756226791081,2.1349113,110040.0,110030.0,0.00100001]
[1756226791476,2.1349113,110040.0,110030.0,1e-08]
[1756226791849,2.1369113,110040.0,110030.0,1e-08]
[1756226792702,2.1379113,110040.0,110030.0,1e-08]
[1756226792913,1.9819113,110040.0,110030.0,1e-08]
[1756226793117,2.1379113,110040.0,110030.0,1e-08]
[1756226793349,1.89046601,110040.0,110030.0,1e-08]
[1756226793554,2.04646601,110040.0,110030.0,1e-08]
[1756226795350,2.0322425,110040.0,110030.0,1e-08]
[1756226795946,2.0322825,110040.0,110030.0,1e-08]
[1756226796971,1.3026659,110040.0,110030.0,1e-08]
[1756226797184,1.4556659,110040.0,110030.0,0.00196001]
[1756226797578,1.28000008,110040.0,110030.0,0.00512001]
[1756226797846,1.43504008,110040.0,110030.0,0.00512001]
[1756226798052,2.00872262,110040.0,110030.0,1e-08]
[1756226798294,1.85684262,110040.0,110030.0,1e-08]
[1756226798461,2.01388256,110040.0,110030.0,1e-08]
[1756226798878,1.87206688,110040.0,110030.0,1e-08]
[1756226799056,2.02810688,110040.0,110030.0,1e-08]
[1756226799867,2.0455559,110040.0,110030.0,1e-08]
[1756226801037,2.04555658,110040.0,110030.0,1e-08]
[1756226801375,6.82730612,110040.0,110030.0,1e-08]
[1756226802582,6.8320614,110040.0,110030.0,1e-08]
[1756226803203,6.86476942,110040.0,110030.0,1e-08]
[1756226803392,6.95621471,110040.0,110030.0,1e-08]
[1756226803557,5.75251426,110040.0,110030.0,1e-08]
[1756226803762,6.86476942,110040.0,110030.0,1e-08]
[1756226804163,6.83206149,110040.0,110030.0,1e-08]
[1756226805438,6.86476951,110040.0,110030.0,1e-08]
[1756226806843,6.70556951,110040.0,110030.0,1e-08]
[1756226807138,2.10752651,110040.0,110030.0,1e-08]
[1756226807338,2.10436651,110040.0,110030.0,1e-08]
[1756226807691,2.10753078,110040.0,110030.0,1e-08]
[1756226809433,2.08302424,110040.0,110030.0,1e-08]
[1756226809638,6.93171253,110040.0,110030.0,1e-08]
[1756226810043,6.91748821,110040.0,110030.0,1e-08]
[1756226811350,6.97288336,110040.0,110030.0,1e-08]
[1756226812230,6.96650652,110040.0,110030.0,1e-08]
[1756226812372,6.97288594,110040.0,110030.0,1e-08]
[1756226813229,7.00413061,110040.0,110030.0,1e-08]
[1756226813391,6.97142259,110040.0,110030.0,1e-08]
[1756226813739,7.17240671,110040.0,110030.0,1e-08]
[1756226813970,0.52180165,110010.0,110000.0,0.0756796]
[1756226814163,1.28652899,110010.0,110000.0,0.07572729]
[1756226814376,1.28652899,110010.0,110000.0,0.07768729]
[1756226815217,1.26201656,110010.0,110000.0,0.07968729]
[1756226815432,1.28652899,110010.0,110000.0,0.07968729]
[1756226815908,1.13048899,110010.0,110000.0,0.26150547]
[1756226816146,0.36804733,110010.0,110000.0,0.26150547]
[1756226816372,0.70588898,110010.0,110000.0,0.26350547]
[1756226816582,0.36804733,110010.0,110000.0,0.26350547]
[1756226816770,0.02804733,110010.0,110000.0,0.35496749]
[1756226817521,0.01955496,110010.0,110000.0,0.35496749]
[1756226817781,0.0280819,110010.0,110000.0,0.35496749]
[1756226818313,0.20988355,110010.0,110000.0,0.28244789]
[1756226818792,0.0280819,110010.0,110000.0,0.28244789]
[1756226819709,0.00852694,110010.0,110000.0,0.28244789]
[1756226820339,0.00852694,110010.0,110000.0,0.28044789]
[1756226820742,0.00852694,110010.0,110000.0,0.28144789]
[1756226821150,0.00852694,110010.0,110000.0,0.28244789]
[1756226823924,0.00852694,110010.0,110000.0,0.83857547]
[1756226824823,0.00852694,110010.0,110000.0,0.28244789]
[1756226825455,0.19032859,110010.0,110000.0,0.28244789]
[1756226825636,0.19032859,110010.0,110000.0,0.43844789]
[1756226826060,0.74645617,110010.0,110000.0,0.28244789]
[1756226826485,0.73792923,110010.0,110000.0,0.10062971]
[1756226826688,0.90245619,110010.0,110000.0,0.10062971]
[1756226827097,0.90245619,110010.0,110000.0,0.28244789]
[1756226827305,0.90245633,110010.0,110000.0,0.28244789]
[1756226828133,0.90245633,110010.0,110000.0,0.10062971]
[1756226829745,0.92711594,110010.0,110000.0,0.00404769]
[1756226830343,0.92408594,110010.0,110000.0,0.00404769]
[1756226830538,0.92711594,110010.0,110000.0,0.00404769]
[1756226831150,0.92408594,110010.0,110000.0,0.00404769]
[1756226831752,1.32347017,110010.0,110000.0,0.00404769]
[1756226831961,2.06553979,110010.0,110000.0,0.00404769]
[1756226832353,2.14614554,110010.0,110000.0,0.00404769]
[1756226832557,2.14614554,110010.0,110000.0,0.00104769]
[1756226832869,6.92559377,110010.0,110000.0,4.769e-05]
[1756226833068,0.18188432,109960.0,109950.0,0.1424396]
[1756226833206,0.7380119,109960.0,109950.0,0.3484898]
[1756226833553,0.18188432,109960.0,109950.0,0.3514298]
[1756226833982,0.89399536,109970.0,109950.0,0.3514298]
[1756226834188,0.89399536,109970.0,109960.0,0.18482432]
[1756226834407,0.89399536,109970.0,109960.0,0.00507]
[1756226835154,0.66080791,109970.0,109960.0,0.18695432]
[1756226835360,0.84267569,109970.0,109960.0,0.18695432]
[1756226835761,0.84267569,109970.0,109960.0,0.18995432]
[1756226836608,0.28654811,109970.0,109960.0,0.18995432]
[1756226836811,0.84267569,109970.0,109960.0,0.18995432]
[1756226837025,0.84267569,109970.0,109960.0,0.01007]
[1756226837235,0.84267569,109970.0,109960.0,0.19195432]
[1756226838053,0.84465569,109970.0,109960.0,0.01007]
[1756226838527,0.89597536,109970.0,109960.0,0.19195432]
[1756226839104,0.71410758,109970.0,109960.0,0.19195432]
[1756226839385,0.15798,109970.0,109960.0,0.19195432]
[1756226839586,0.55612758,109970.0,109960.0,0.19195432]
[1756226839787,0.71212758,109970.0,109960.0,0.19195432]
[1756226840001,0.55612758,109970.0,109960.0,0.19195432]
[1756226840727,1.08250258,109980.0,109970.0,0.18186778]
[1756226840946,1.08448258,109980.0,109970.0,0.18186778]
[1756226841175,0.372355,109980.0,109970.0,0.18186778]
[1756226841384,0.34,109980.0,109970.0,0.18693778]
[1756226842341,0.34,109980.0,109970.0,0.18793778]
[1756226842969,0.34,109980.0,109970.0,0.18993778]
[1756226843362,0.58347158,109990.0,109970.0,0.18993778]
[1756226843363,0.523384,109990.0,109980.0,0.18185124]
[1756226843600,0.523384,109990.0,109980.0,0.18692124]
[1756226844211,0.525364,109990.0,109980.0,0.18692124]
[1756226844416,0.523384,109990.0,109980.0,0.18692124]
[1756226845069,0.01423058,110000.0,109990.0,0.18183471]
[1756226845278,0.49802,110000.0,109990.0,0.18183471]
[1756226845487,0.369319,110000.0,109990.0,0.18396471]
[1756226845694,0.525359,110000.0,109990.0,0.18396471]
[1756226846327,0.525359,110000.0,109990.0,0.18401241]
[1756226846536,0.370319,110000.0,109990.0,0.18695241]
[1756226846738,0.368339,110000.0,109990.0,0.18695241]
[1756226846948,0.524379,110000.0,109990.0,0.18695241]
[1756226847380,0.001,110000.0,109990.0,0.74307999]
[1756226848565,0.001,110000.0,109990.0,0.18695241]
[1756226848788,0.001,110000.0,109990.0,0.18895241]
[1756226848989,0.001,110000.0,109990.0,0.18899241]
[1756226849169,0.51036765,110010.0,110000.0,0.18181818]
[1756226849504,0.6941493,110010.0,110000.0,0.18394818]
[1756226849709,0.6941493,110010.0,110000.0,0.00213]
[1756226849958,0.6971793,110010.0,109990.0,0.34590241]
[1756226850143,0.18181818,110000.0,109990.0,0.34090241]
[1756226850321,0.6941493,110010.0,110000.0,0.18281818]
[1756226850520,0.6941493,110010.0,110000.0,0.18481818]
[1756226850943,0.6941493,110010.0,110000.0,0.18694818]
[1756226851511,0.51234765,110010.0,110000.0,0.18594818]
[1756226851751,0.51036765,110010.0,110000.0,0.18688818]
[1756226852519,0.00475621,110010.0,110000.0,0.18888818]
[1756226852879,0.00475621,110010.0,110000.0,0.18988818]
[1756226853078,0.18655786,110010.0,110000.0,0.18988818]
[1756226853237,0.18378165,110010.0,110000.0,0.34294818]
[1756226853640,0.18378165,110010.0,110000.0,0.00513]
[1756226853861,0.18378165,110010.0,110000.0,0.18694818]
[1756226854268,0.19297834,110010.0,110000.0,0.18694818]
[1756226855490,0.18180165,110010.0,110000.0,0.18988818]
[1756226856914,0.18378165,110010.0,110000.0,0.00513]
[1756226857773,0.18378165,110010.0,110000.0,0.003]
[1756226857978,0.18682165,110010.0,110000.0,0.003]
[1756226858191,0.19638001,110010.0,110000.0,0.003]
[1756226859080,0.19334001,110010.0,110000.0,0.003]
[1756226859297,1.09250759,110010.0,110000.0,0.003]
[1756226859527,1.11984559,110010.0,110000.0,0.003]
[1756226860602,0.56067801,110010.0,110000.0,0.003]
[1756226860806,1.11680559,110010.0,110000.0,0.003]
[1756226861487,1.11984559,110010.0,110000.0,0.003]
[1756226861695,1.12000559,110010.0,110000.0,0.003]
[1756226861898,1.27600559,110010.0,110000.0,0.003]
[1756226862305,1.12000559,110010.0,110000.0,0.003]
[1756226862509,1.27600559,110010.0,110000.0,0.003]
[1756226862699,1.12000559,110010.0,110000.0,0.003]
[1756226862874,1.27600559,110010.0,110000.0,0.003]
[1756226865355,1.27082559,110010.0,110000.0,0.00304]
[1756226870829,1.2793438,110010.0,110000.0,0.00304]
[1756226872121,1.37080582,110010.0,110000.0,0.00304]
[1756226872363,1.39044292,110010.0,110000.0,0.00304]
[1756226872578,1.40467039,110010.0,110000.0,0.00304]
[1756226873016,1.40467039,110010.0,110000.0,0.00104]
[1756226873374,1.40467039,110010.0,110000.0,4e-05]
[1756226874230,1.49711568,110010.0,110000.0,4e-05]
[1756226875025,2.10164628,110010.0,110000.0,4e-05]
[1756226875240,6.87594342,110010.0,110000.0,4e-05]
[1756226875397,6.9086884,110010.0,110000.0,4e-05]
[1756226876822,6.90017019,110010.0,110000.0,4e-05]
[1756226877027,6.90868486,110010.0,110000.0,4e-05]
[1756226877694,6.89445739,110010.0,110000.0,4e-05]
[1756226878191,6.86989865,110010.0,110000.0,4e-05]
[1756226880860,5.60164349,110010.0,110000.0,4e-05]
[1756226881076,6.23651563,110010.0,110000.0,4e-05]
[1756226881265,6.10508278,110010.0,110000.0,4e-05]
[1756226881415,6.26104278,110010.0,110000.0,4e-05]
[1756226882294,6.2282978,110010.0,110000.0,4e-05]
[1756226882412,6.0723378,110010.0,110000.0,4e-05]
[1756226882613,6.07232975,110010.0,110000.0,4e-05]
[1756226882833,6.31973504,110010.0,110000.0,4e-05]
[1756226883032,5.51620217,110010.0,110000.0,4e-05]
[1756226883259,6.22828975,110010.0,110000.0,4e-05]
[1756226884444,6.22828975,110010.0,110000.0,4e-05]
[1756226884967,6.2140599,110010.0,110000.0,4e-05]
[1756226885173,6.77018748,110010.0,110000.0,4e-05]
[1756226885584,6.2090599,110010.0,110000.0,4e-05]
[1756226885783,6.24852619,110010.0,110000.0,4e-05]
[1756226885990,6.26554088,110010.0,110000.0,4e-05]
[1756226886574,5.49693945,110010.0,110000.0,4e-05]
[1756226886779,6.20902684,110010.0,110000.0,4e-05]
[1756226888174,6.76515442,110010.0,110000.0,4e-05]
[1756226888376,6.7978994,110010.0,110000.0,4e-05]
[1756226888540,6.81212891,110010.0,110000.0,4e-05]
[1756226888889,6.9035742,110010.0,110000.0,4e-05]
[1756226889325,6.9035767,110010.0,110000.0,4e-05]
[1756226889533,6.90357954,110010.0,110000.0,4e-05]
[1756226890507,6.87083456,110010.0,110000.0,4e-05]
[1756226892416,6.90357954,110010.0,110000.0,4e-05]
[1756226893804,6.88612845,110010.0,110000.0,4e-05]
[1756226894153,6.90357747,110010.0,110000.0,4e-05]
[1756226895743,0.52185124,109980.0,109970.0,0.0725196]
[1756226895943,1.32540084,109980.0,109970.0,0.07299692]
[1756226896164,1.35353607,109980.0,109970.0,0.07299692]
[1756226896365,1.38088207,109980.0,109970.0,0.07299692]
[1756226896743,0.82475449,109980.0,109970.0,0.07299692]
[1756226896944,1.35274684,109980.0,109970.0,0.07299692]
[1756226897152,1.39511254,109980.0,109970.0,0.07299692]
[1756226897467,1.39511254,109980.0,109970.0,0.07499692]
[1756226897869,1.39511254,109980.0,109970.0,0.00447732]
[1756226898280,1.39511254,109980.0,109970.0,0.00247732]
[1756226898721,1.39511254,109980.0,109970.0,0.00347732]
[1756226905353,1.41963519,109980.0,109970.0,0.00347732]
[1756226906296,1.41964721,109980.0,109970.0,0.00347732]
[1756226906726,1.5602128,109980.0,109970.0,0.00347732]
[1756226906941,1.54598109,109980.0,109970.0,0.00347732]
[1756226907144,1.59500596,109980.0,109970.0,0.00347732]
[1756226907319,1.59500596,109980.0,109970.0,0.00047732]
[1756226907727,1.59500596,109980.0,109970.0,0.00147732]
[1756226907897,1.59500596,109980.0,109970.0,0.00047732]
[1756226908312,6.35224896,109980.0,109970.0,0.00047732]
[1756226908572,6.35324896,109980.0,109970.0,0.00047732]
[1756226910123,0.5219174,109940.0,109930.0,0.0729596]
[1756226910436,0.6778374,109940.0,109930.0,0.0731028]
[1756226910718,0.5219174,109940.0,109930.0,0.0731028]
[1756226910886,0.5492704,109940.0,109930.0,0.0731028]
[1756226911286,0.5492704,109940.0,109930.0,0.0781028]
[1756226911536,0.55858387,109940.0,109930.0,0.0811028]
[1756226911848,0.5492704,109940.0,109930.0,0.08337697]
[1756226913664,0.5492704,109940.0,109930.0,0.01085737]
[1756226916209,0.5492704,109940.0,109930.0,0.0085832]
[1756226916926,0.5492704,109940.0,109930.0,0.01085737]
[1756226919464,0.50929211,109940.0,109930.0,0.01085737]
[1756226921628,0.2092704,109940.0,109930.0,0.19279132]
[1756226921857,0.1819174,109940.0,109930.0,0.83810675]
[1756226922061,0.19125636,109950.0,109930.0,0.83810675]
[1756226922286,0.21860536,109950.0,109930.0,0.83810675]
[1756226922872,0.55860536,109950.0,109940.0,0.15819396]
[1756226923858,0.1819174,109940.0,109930.0,0.09204522]
[1756226924062,0.1819174,109940.0,109930.0,0.24792522]
[1756226925293,0.1819174,109940.0,109930.0,0.25308522]
[1756226926394,0.1819174,109940.0,109930.0,0.25608522]
[1756226926590,0.1819174,109940.0,109930.0,0.26108522]
[1756226929038,0.1839474,109940.0,109930.0,0.26108522]
[1756226929602,0.1819174,109940.0,109930.0,0.26108522]
[1756226930121,0.74007498,109940.0,109930.0,0.1644632]
[1756226930529,0.76742598,109940.0,109930.0,0.1644632]
[1756226930727,0.77039598,109940.0,109930.0,0.1644632]
[1756226930933,0.76742598,109940.0,109930.0,0.1644632]
[1756226931315,1.11039598,109940.0,109930.0,0.1644632]
[1756226932141,1.10742598,109940.0,109930.0,0.1614632]
[1756226932923,0.5512984,109940.0,109930.0,0.1655632]
[1756226933122,0.5492684,109940.0,109930.0,0.1686232]
[1756226933570,0.5492684,109940.0,109930.0,0.1636232]
[1756226933768,0.5492684,109940.0,109930.0,0.16989737]
[1756226935001,0.5512984,109940.0,109930.0,0.16989737]
[1756226935386,0.5492684,109940.0,109930.0,0.16989737]
[1756226935595,0.5512984,109940.0,109930.0,0.16989737]
[1756226935800,0.5512984,109940.0,109930.0,0.1624632]
[1756226935801,1.10742598,109940.0,109930.0,0.1624632]
[1756226936018,1.10742598,109940.0,109930.0,0.0065832]
[1756226936019,1.11039598,109940.0,109930.0,0.0065832]
[1756226938146,0.5542684,109940.0,109930.0,0.0065832]
[1756226938349,1.13003656,109940.0,109930.0,0.0065832]
[1756226939134,1.11039598,109940.0,109930.0,0.0065832]
[1756226939584,1.13003281,109940.0,109930.0,0.0065832]
[1756226939807,1.16473919,109940.0,109930.0,0.0065832]
[1756226940299,1.25620121,109940.0,109930.0,0.0065832]
[1756226940894,1.2694816,109940.0,109930.0,0.0065832]
[1756226941416,1.06568294,109940.0,109930.0,0.0045832]
[1756226941541,1.36873396,109940.0,109930.0,0.0005832]
[1756226941749,1.36873396,109940.0,109930.0,0.0015832]
[1756226942360,1.21289396,109940.0,109930.0,0.0015832]
[1756226942573,1.36576396,109940.0,109930.0,0.0015832]
[1756226942837,1.33760423,109940.0,109930.0,0.0036832]
[1756226943052,1.09030221,109940.0,109930.0,0.0077432]
[1756226943278,1.24614221,109940.0,109930.0,0.0077432]